lending/lending_fUSD_20250114
["ID","MTS","AMOUNT","RATE_DAILY","PERIOD"]
[348856074,1736815837431,-500.0,9.805e-05,2]
[348856075,1736815837440,-500.0,9.805e-05,2]
[348856076,1736815837449,-500.0,9.805e-05,2]
[348856077,1736815837458,-500.0,9.805e-05,2]
[348856078,1736815837470,-500.0,9.805e-05,2]
[348856079,1736815837481,-500.0,9.805e-05,2]
[348856080,1736815837490,-500.0,9.805e-05,2]
[348856081,1736815837500,-500.0,9.805e-05,2]
[348856082,1736815837509,-500.0,9.805e-05,2]
[348856083,1736815837518,-500.0,9.805e-05,2]
[348856084,1736815837527,-500.0,9.805e-05,2]
[348856085,1736815837537,-500.0,9.805e-05,2]
[348856086,1736815837546,-500.0,9.805e-05,2]
[348856087,1736815837563,-500.0,9.805e-05,2]
[348856088,1736815837579,-500.0,9.805e-05,2]
[348856089,1736815837588,-500.0,9.805e-05,2]
[348856090,1736815837610,-500.0,9.805e-05,2]
[348856091,1736815837619,-500.0,9.805e-05,2]
[348856092,1736815837629,-500.0,9.805e-05,2]
[348856093,1736815837639,-500.0,9.805e-05,2]
[348856094,1736815837648,-500.0,9.805e-05,2]
[348856095,1736815837658,-500.0,9.805e-05,2]
[348856096,1736815837667,-500.0,9.805e-05,2]
[348856097,1736815837676,-500.0,9.805e-05,2]
[348856098,1736815837685,-500.0,9.805e-05,2]
[348856099,1736815837695,-500.0,9.805e-05,2]
[348856100,1736815837705,-504.48072907,9.805e-05,2]
[348856101,1736815837716,-500.0,9.805e-05,2]
[348856102,1736815837725,-500.0,9.805e-05,2]
[348856103,1736815837734,-500.0,9.805e-05,2]
[348856104,1736815837744,-500.0,9.805e-05,2]
[348856105,1736815837754,-500.0,9.805e-05,2]
[348856106,1736815837763,-500.0,9.805e-05,2]
[348856107,1736815837772,-500.0,9.805e-05,2]
[348856108,1736815837783,-500.0,9.805e-05,2]
[348856109,1736815837792,-500.0,9.805e-05,2]
[348856110,1736815837801,-500.0,9.805e-05,2]
[348856111,1736815837810,-658.57,9.805e-05,2]
[348856112,1736815837820,-500.0,9.805e-05,2]
[348856113,1736815837829,-500.0,9.805e-05,2]
[348856114,1736815837838,-500.0,9.805e-05,2]
[348856115,1736815837847,-500.0,9.805e-05,2]
[348856116,1736815837857,-500.0,9.805e-05,2]
[348856118,1736815837866,-595.99794701,9.805e-05,2]
[348856120,1736815837876,-500.0,9.805e-05,2]
[348856122,1736815837885,-500.0,9.805e-05,2]
[348856124,1736815837894,-500.0,9.805e-05,2]
[348856126,1736815837903,-500.0,9.805e-05,2]
[348856128,1736815837913,-500.0,9.805e-05,2]
[348856129,1736815837922,-500.0,9.805e-05,2]
[348856131,1736815837931,-500.0,9.805e-05,2]
[348856133,1736815837941,-500.0,9.805e-05,2]
[348856135,1736815837950,-500.0,9.805e-05,2]
[348856137,1736815837960,-500.0,9.805e-05,2]
[348856139,1736815837970,-500.0,9.805e-05,2]
[348856141,1736815837981,-500.0,9.805e-05,2]
[348856143,1736815837990,-500.0,9.805e-05,2]
[348856146,1736815838000,-500.0,9.805e-05,2]
[348856148,1736815838010,-500.0,9.805e-05,2]
[348856150,1736815838019,-500.0,9.805e-05,2]
[348856152,1736815838028,-500.0,9.805e-05,2]
[348856153,1736815838038,-500.0,9.805e-05,2]
[348856155,1736815838047,-500.0,9.805e-05,2]
[348856157,1736815838057,-500.0,9.805e-05,2]
[348856158,1736815838066,-500.0,9.805e-05,2]
[348856159,1736815838076,-500.0,9.805e-05,2]
[348856160,1736815838087,-500.0,9.805e-05,2]
[348856161,1736815838096,-500.0,9.805e-05,2]
[348856162,1736815838106,-500.0,9.805e-05,2]
[348856163,1736815838115,-500.0,9.805e-05,2]
[348856165,1736815838124,-500.0,9.805e-05,2]
[348856166,1736815838133,-500.0,9.805e-05,2]
[348856168,1736815838142,-500.0,9.805e-05,2]
[348856170,1736815838152,-500.0,9.805e-05,2]
[348856171,1736815838162,-500.0,9.805e-05,2]
[348856173,1736815838172,-500.0,9.805e-05,2]
[348856175,1736815838182,-500.0,9.805e-05,2]
[348856176,1736815838192,-500.0,9.805e-05,2]
[348856177,1736815838202,-500.0,9.805e-05,2]
[348856178,1736815838212,-500.0,9.805e-05,2]
[348856179,1736815838224,-500.0,9.805e-05,2]
[348856180,1736815838234,-786.14,9.805e-05,2]
[348856181,1736815838244,-500.0,9.805e-05,2]
[348856182,1736815838254,-500.0,9.805e-05,2]
[348856183,1736815838264,-674.59,9.805e-05,2]
[348856184,1736815838273,-732.28,9.805e-05,2]
[348856185,1736815838283,-500.0,9.805e-05,2]
[348856186,1736815838292,-500.0,9.805e-05,2]
[348856187,1736815838302,-500.0,9.805e-05,2]
[348856188,1736815838311,-500.0,9.805e-05,2]
[348856189,1736815838321,-500.0,9.805e-05,2]
[348856190,1736815838330,-500.0,9.805e-05,2]
[348856191,1736815838339,-500.0,9.805e-05,2]
[348856192,1736815838349,-500.0,9.805e-05,2]
[348856193,1736815838358,-500.0,9.805e-05,2]
[348856194,1736815838368,-500.0,9.805e-05,2]
[348856195,1736815838378,-500.0,9.805e-05,2]
[348856196,1736815838387,-500.0,9.805e-05,2]
[348856197,1736815838396,-500.0,9.805e-05,2]
[348856198,1736815838405,-500.0,9.805e-05,2]
[348856199,1736815838415,-500.0,9.805e-05,2]
[348856200,1736815838424,-500.0,9.805e-05,2]
[348856201,1736815838434,-610.54,9.805e-05,2]
[348856202,1736815838444,-500.0,9.805e-05,2]
[348856203,1736815838453,-500.0,9.805e-05,2]
[348856204,1736815838463,-500.0,9.805e-05,2]
[348856205,1736815838473,-500.0,9.805e-05,2]
[348856206,1736815838482,-500.0,9.805e-05,2]
[348856207,1736815838492,-500.0,9.805e-05,2]
[348856208,1736815838502,-500.0,9.805e-05,2]
[348856209,1736815838512,-500.0,9.805e-05,2]
[348856210,1736815838521,-500.0,9.805e-05,2]
[348856211,1736815838531,-500.0,9.805e-05,2]
[348856212,1736815838540,-500.0,9.805e-05,2]
[348856213,1736815838551,-500.0,9.805e-05,2]
[348856214,1736815838563,-500.0,9.805e-05,2]
[348856215,1736815838572,-500.0,9.805e-05,2]
[348856216,1736815838582,-500.0,9.805e-05,2]
[348856217,1736815838592,-500.0,9.805e-05,2]
[348856218,1736815838602,-500.0,9.805e-05,2]
[348856219,1736815838612,-500.0,9.805e-05,2]
[348856220,1736815838621,-500.0,9.805e-05,2]
[348856221,1736815838632,-500.0,9.805e-05,2]
[348856222,1736815838642,-500.0,9.805e-05,2]
[348856223,1736815838654,-500.0,9.805e-05,2]
[348856224,1736815838665,-625.04165177,9.805e-05,2]
[348856225,1736815838676,-500.0,9.805e-05,2]
[348856226,1736815838685,-500.0,9.805e-05,2]
[348856227,1736815838695,-500.0,9.805e-05,2]
[348856228,1736815838716,-500.0,9.805e-05,2]
[348856229,1736815838730,-500.0,9.805e-05,2]
[348856230,1736815838740,-649.11,9.805e-05,2]
[348856231,1736815838750,-500.0,9.805e-05,2]
[348856232,1736815838759,-500.0,9.805e-05,2]
[348856233,1736815838769,-500.0,9.805e-05,2]
[348856234,1736815838779,-500.0,9.805e-05,2]
[348856235,1736815838790,-500.0,9.805e-05,2]
[348856236,1736815838799,-500.0,9.805e-05,2]
[348856237,1736815838808,-500.0,9.805e-05,2]
[348856238,1736815838819,-500.0,9.805e-05,2]
[348856239,1736815838829,-500.0,9.805e-05,2]
[348856240,1736815838839,-500.0,9.805e-05,2]
[348856241,1736815838849,-500.0,9.805e-05,2]
[348856242,1736815838863,-500.0,9.805e-05,2]
[348856243,1736815838873,-500.0,9.805e-05,2]
[348856244,1736815838884,-500.0,9.805e-05,2]
[348856245,1736815838894,-500.0,9.805e-05,2]
[348856246,1736815838903,-500.0,9.805e-05,2]
[348856247,1736815838913,-500.0,9.805e-05,2]
[348856248,1736815838924,-500.0,9.805e-05,2]
[348856249,1736815838934,-500.0,9.805e-05,2]
[348856250,1736815838945,-500.0,9.805e-05,2]
[348856251,1736815838955,-500.0,9.805e-05,2]
[348856252,1736815838965,-500.0,9.805e-05,2]
[348856253,1736815838975,-500.0,9.805e-05,2]
[348856254,1736815838985,-500.0,9.805e-05,2]
[348856255,1736815838995,-161.28958577,9.805e-05,2]
[348856256,1736815839005,-500.0,9.805e-05,2]
[348856257,1736815839016,-500.0,9.805e-05,2]
[348856258,1736815839025,-500.0,9.805e-05,2]
[348856259,1736815839035,-150.0,9.805e-05,2]
[348856260,1736815839044,-500.0,9.805e-05,2]
[348856261,1736815839054,-500.0,9.805e-05,2]
[348856262,1736815839064,-500.0,9.805e-05,2]
[348856263,1736815839073,-500.0,9.805e-05,2]
[348856264,1736815839083,-500.0,9.805e-05,2]
[348856265,1736815839093,-500.0,9.805e-05,2]
[348856266,1736815839103,-374.16283015,9.805e-05,2]
[348856267,1736815839114,-500.0,9.805e-05,2]
[348856268,1736815839123,-500.0,9.805e-05,2]
[348856269,1736815839134,-500.0,9.805e-05,2]
[348856270,1736815839144,-500.0,9.805e-05,2]
[348856271,1736815839154,-500.0,9.805e-05,2]
[348856272,1736815839164,-533.67,9.805e-05,2]
[348856273,1736815839174,-500.0,9.805e-05,2]
[348856274,1736815839184,-500.0,9.805e-05,2]
[348856275,1736815839194,-500.0,9.805e-05,2]
[348856276,1736815839204,-500.0,9.805e-05,2]
[348856282,1736815839414,-603.18,9.805e-05,2]
[348856283,1736815839424,-500.0,9.805e-05,2]
[348856284,1736815839434,-500.0,9.805e-05,2]
[348856285,1736815839444,-504.24,9.805e-05,2]
[348856287,1736815839453,-500.0,9.805e-05,2]
[348856288,1736815839462,-500.0,9.805e-05,2]
[348856289,1736815839474,-500.0,9.805e-05,2]
[348856290,1736815839484,-500.0,9.805e-05,2]
[348856292,1736815839494,-500.0,9.805e-05,2]
[348856294,1736815839503,-699.52,9.805e-05,2]
[348856295,1736815839513,-500.0,9.805e-05,2]
[348856296,1736815839523,-500.0,9.805e-05,2]
[348856297,1736815839533,-500.0,9.805e-05,2]
[348856298,1736815839543,-500.0,9.805e-05,2]
[348856299,1736815839555,-500.0,9.805e-05,2]
[348856300,1736815839565,-500.0,9.805e-05,2]
[348856301,1736815839574,-500.0,9.805e-05,2]
[348856302,1736815839584,-500.0,9.805e-05,2]
[348856303,1736815839594,-500.0,9.805e-05,2]
[348856304,1736815839604,-500.0,9.805e-05,2]
[348856305,1736815839613,-500.0,9.805e-05,2]
[348856306,1736815839623,-500.0,9.805e-05,2]
[348856307,1736815839848,-843.55,9.805e-05,2]
[348856308,1736815839858,-500.0,9.805e-05,2]
[348856309,1736815839868,-1082.13,9.805e-05,2]
[348856310,1736815839878,-500.0,9.805e-05,2]
[348856311,1736815839888,-500.0,9.805e-05,2]
[348856312,1736815839898,-867.0,9.805e-05,2]
[348856313,1736815839907,-924.13,9.886e-05,2]
[348856314,1736815839917,-1422.05,9.886e-05,2]
[348856315,1736815839927,-173.0,9.887e-05,2]
[348856316,1736815839937,-680.73,9.887e-05,2]
[348856317,1736815839947,-500.0,9.887e-05,2]
[348856318,1736815839957,-814.14,9.887e-05,2]
[348856319,1736815839966,-500.0,9.887e-05,2]
[348856320,1736815839976,-500.0,9.887e-05,2]
[348856321,1736815839986,-500.0,9.887e-05,2]
[348856322,1736815839995,-500.0,9.887e-05,2]
[348856323,1736815840005,-509.37,9.887e-05,2]
[348856325,1736815840015,-500.0,9.887e-05,2]
[348856326,1736815840025,-500.0,9.887e-05,2]
[348856327,1736815840035,-500.0,9.887e-05,2]
[348856328,1736815840046,-500.0,9.887e-05,2]
[348856329,1736815840056,-1452.57,9.887e-05,2]
[348856331,1736815840065,-1505.07,9.887e-05,2]
[348856332,1736815840075,-1506.24,9.887e-05,2]
[348856334,1736815840086,-3386.6,9.887e-05,2]
[348856336,1736815840095,-1498.03,9.887e-05,2]
[348856337,1736815840105,-1198.39,9.887e-05,2]
[348856338,1736815840114,-1333.08,9.887e-05,2]
[348856339,1736815840124,-2378.08,9.887e-05,2]
[348856340,1736815840133,-500.0,9.888e-05,2]
[348856341,1736815840143,-909.28,9.888e-05,2]
[348856342,1736815840152,-1491.98,9.888e-05,2]
[348856343,1736815840161,-892.69,9.888e-05,2]
[348856344,1736815840171,-999.3,9.888e-05,2]
[348856345,1736815840180,-859.96,9.888e-05,2]
[348856346,1736815840189,-771.51,9.888e-05,2]
[348856347,1736815840199,-1773.37,9.888e-05,2]
[348856348,1736815840209,-1475.38,9.888e-05,2]
[348856350,1736815840219,-2104.99,9.888e-05,2]
[348856352,1736815840230,-680.73,9.889e-05,2]
[348856354,1736815840240,-500.0,9.889e-05,2]
[348856356,1736815840250,-1926.15,9.889e-05,2]
[348856357,1736815840259,-3410.55,9.889e-05,2]
[348856358,1736815840269,-8630.21,9.889e-05,2]
[348856359,1736815840279,-1208.06,9.889e-05,2]
[348856360,1736815840288,-500.0,9.889e-05,2]
[348856361,1736815840297,-636.77,9.889e-05,2]
[348856362,1736815840307,-1311.71,9.889e-05,2]
[348856363,1736815840317,-825.73,9.889e-05,2]
[348856364,1736815840326,-1506.25,9.889e-05,2]
[348856365,1736815840335,-1952.41,9.889e-05,2]
[348856366,1736815840345,-500.0,9.89e-05,2]
[348856367,1736815840355,-1000.0,9.89e-05,2]
[348856368,1736815840364,-928.71,9.89e-05,2]
[348856369,1736815840374,-500.0,9.89e-05,2]
[348856370,1736815840384,-2075.67,9.89e-05,2]
[348856371,1736815840393,-500.0,9.89e-05,2]
[348856372,1736815840402,-1688.1,9.89e-05,2]
[348856373,1736815840412,-1084.12,9.89e-05,2]
[348856374,1736815840421,-801.9045,9.9e-05,2]
[348856375,1736815840431,-500.0,9.9e-05,3]
[348856376,1736815840440,-162.84795201,9.973e-05,2]
[348856377,1736815840449,-500.0,9.973e-05,2]
[348856378,1736815840459,-680.73,9.993e-05,2]
[348856379,1736815840471,-340635.37392926,9.994e-05,2]
[348856380,1736815840520,-409.69103658,9.994e-05,2]
[348856381,1736815840531,-8139.86838944,9.994e-05,2]
[348856382,1736815840541,-1693.69,9.999e-05,2]
[348856383,1736815840551,-500.0,9.999e-05,2]
[348856384,1736815840563,-845.02,9.999e-05,2]
[348856385,1736815840573,-750.99,9.999e-05,2]
[348856386,1736815840583,-1276.46,9.999e-05,2]
[348856387,1736815840593,-2218.86,9.999e-05,2]
[348856388,1736815840602,-1316.14,9.999e-05,2]
[348856389,1736815840612,-929.71,9.999e-05,2]
[348856390,1736815840621,-569.168829,9.999e-05,2]
[348856391,1736815840631,-158.694823,9.999e-05,2]
[348856392,1736815840640,-586.643308,9.999e-05,2]
[348856393,1736815840650,-803.17,9.999e-05,2]
[348856394,1736815840660,-680.73,9.999e-05,2]
[348856395,1736815840670,-680.73,9.999e-05,2]
[348856396,1736815840679,-680.73,9.999e-05,2]
[348856397,1736815840689,-680.73,9.999e-05,2]
[348856398,1736815840699,-680.73,9.999e-05,2]
[348856399,1736815840708,-680.73,9.999e-05,2]
[348856400,1736815840719,-680.73,9.999e-05,2]
[348856401,1736815840729,-542.11187891,9.999e-05,2]
[348856402,1736815840741,-138.61812109,9.999e-05,2]
[348856403,1736815840751,-164.42462868,9.999e-05,2]
[348856404,1736815840781,-516.30537132,9.999e-05,2]
[348856405,1736815840790,-680.73,9.999e-05,2]
[348856406,1736815840800,-138.23855859,9.999e-05,2]
[348856407,1736815840811,-446.05840089,9.999e-05,2]
[348856408,1736815842098,-490.20845985,9.888e-05,2]
[348856409,1736815842110,-1045.36154015,9.888e-05,2]
[348856410,1736815842119,-96.43304052,9.999e-05,2]
[348856411,1736815842129,-680.73,9.999e-05,2]
[348856412,1736815842138,-680.73,9.999e-05,2]
[348856413,1736815842147,-680.73,9.999e-05,2]
[348856414,1736815842157,-680.73,9.999e-05,2]
[348856415,1736815842166,-680.73,9.999e-05,2]
[348856416,1736815842175,-680.73,9.999e-05,2]
[348856417,1736815842184,-680.73,9.999e-05,2]
[348856418,1736815842194,-680.73,9.999e-05,2]
[348856419,1736815842203,-680.83,9.999e-05,2]
[348856420,1736815842212,-500.0,9.999e-05,2]
[348856421,1736815842222,-500.0,9.999e-05,2]
[348856422,1736815842231,-500.0,9.999e-05,2]
[348856423,1736815842241,-2857.11,9.999e-05,2]
[348856424,1736815842250,-500.0,9.999e-05,2]
[348856425,1736815842259,-452.84,9.999e-05,2]
[348856426,1736815842268,-500.0,9.999e-05,2]
[348856427,1736815842278,-500.0,9.999e-05,2]
[348856428,1736815842287,-955.35,9.999e-05,2]
[348856429,1736815842297,-500.0,9.999e-05,2]
[348856430,1736815842306,-500.0,9.999e-05,2]
[348856431,1736815842316,-1365.92,9.999e-05,2]
[348856433,1736815842325,-1309.28,9.999e-05,2]
[348856434,1736815842335,-1655.18,9.999e-05,2]
[348856435,1736815842344,-1079.22,9.999e-05,2]
[348856436,1736815842354,-2275.55,9.999e-05,2]
[348856437,1736815842364,-1232.17,9.999e-05,2]
[348856438,1736815842374,-2772.64,9.999e-05,2]
[348856439,1736815842384,-2265.49,9.999e-05,2]
[348856440,1736815842394,-500.0,9.999e-05,2]
[348856441,1736815842403,-172.512737,9.999e-05,2]
[348856442,1736815842413,-1775.22,9.999e-05,2]
[348856443,1736815842422,-3929.97,9.999e-05,2]
[348856445,1736815842431,-1069.0,0.0001,2]
[348856446,1736815842441,-68822.45050307,0.0001,2]
[348856447,1736815842452,-385.28902785,0.0001,2]
[348856448,1736815842463,-6151.53885659,0.0001,2]
[348856451,1736815842485,-405907.15725108,0.0001,2]
[348856452,1736815842495,-6047.26030498,0.0001,2]
[348856453,1736815842504,-9452.26171085,0.0001,2]
[348856454,1736815842515,-1752941.171928,0.0001,2]
[348856455,1736815842526,-602482.44166281,0.0001,2]
[348856456,1736815842537,-1000.0,0.0001,2]
[348856458,1736815842570,-371.28462404,0.0001,2]
[348856461,1736815842863,-290.0643438,0.0001,2]
[348856462,1736815842900,-16603.45121488,0.0001,2]
[348856463,1736815842988,-1453.990171,0.0001,2]
[348856464,1736815843000,-357.38789991,0.0001,2]
[348856465,1736815843030,-3454.06841754,0.0001,2]
[348856466,1736815843056,-1226.34999044,0.0001,2]
[348856467,1736815843084,-34666.08155569,0.0001,2]
[348856468,1736815843594,-271.92848716,9.803e-05,2]
[348856469,1736815843629,-228.07151284,9.803e-05,2]
[348856470,1736815843641,-793.82,9.803e-05,2]
[348856471,1736815843651,-3518.10848716,0.0001,2]
[348856472,1736815843681,-285.50958969,0.0001,2]
[348856473,1736815843693,-483.0140005,0.0001,2]
[348856476,1736815845597,-500.0,9.803e-05,2]
[348856477,1736815845607,-500.0,9.804e-05,2]
[348856478,1736815845616,-10488.72005,0.0001,2]
[348856479,1736815845653,-8545.42789957,0.0001,2]
[348856480,1736815845664,-54164.89575529,0.0001,2]
[348856481,1736815845676,-3999.42611812,0.0001,2]
[348856482,1736815845819,-104368.86842163,0.0001,2]
[348856485,1736815875517,151.011409,0.00023,120]
[348856486,1736815982299,250.0,8.46e-05,2]
[348856487,1736815985256,95.84851,8.219e-05,2]
[348856488,1736815985279,544.71149,8.219e-05,2]
[348856489,1736815991524,500.0,0.00022663,120]
[348856490,1736815996606,2000.0,0.00022663,120]
[348856491,1736816001780,625.242112,0.00022663,120]
[348856492,1736816017110,163.03,8.46e-05,2]
[348856493,1736816026943,200.0,0.00022663,120]
[348856496,1736816144665,150.0,0.00023,120]
[348856499,1736816371298,150.0,0.00022908,120]
[348856502,1736816550778,150.0,0.00021998,120]
[348856503,1736816573673,200.0,0.0002,30]
[348856504,1736816589825,200.0,0.0002,30]
[348856505,1736816590945,500.0,0.00022999,120]
[348856506,1736816595222,2000.0,0.00022049,120]
[348856507,1736816598609,200.0,0.00023,120]
[348856508,1736816604106,200.0,0.00023,120]
[348856509,1736816620970,200.0,0.00022999,120]
[348856510,1736816657536,200.0,0.00023,120]
[348856511,1736816663763,200.0,0.0002,30]
[348856512,1736816703473,200.0,0.0002,30]
[348856513,1736816776502,200.0,0.00023,120]
[348856514,1736816788458,200.0,0.00023,120]
[348856516,1736816908128,92.25851,8.219e-05,2]
[348856517,1736816908156,516.27149,8.219e-05,2]
[348856564,1736817031831,-250.0,8.544e-05,2]
[348856565,1736817031843,-161.87,8.595e-05,2]
[348856566,1736817031853,-387.24,8.602e-05,2]
[348856567,1736817031862,-356.15994558,8.602e-05,5]
[348856568,1736817031892,-4094.84005442,8.602e-05,5]
[348856569,1736817031903,-1000.0,8.614e-05,2]
[348856570,1736817031913,-300.0,8.688e-05,2]
[348856571,1736817031923,-5512.0,8.689e-05,2]
[348856572,1736817031933,-157.97880132,8.773e-05,2]
[348856573,1736817031942,-1124.35,8.773e-05,2]
[348856574,1736817031951,-250.0,8.773e-05,2]
[348856575,1736817031960,-2854.52199645,8.776e-05,2]
[348856576,1736817032061,-1486.77800355,8.776e-05,2]
[348856577,1736817032072,-1040.03,8.855e-05,2]
[348856578,1736817032085,-524.73,8.882e-05,2]
[348856579,1736817032096,-995.18312946,8.936e-05,2]
[348856580,1736817032107,-880.86687054,8.936e-05,2]
[348856581,1736817032116,-300.0,8.987e-05,2]
[348856582,1736817032125,-270.41,9.082e-05,2]
[348856583,1736817032135,-176.96,9.082e-05,2]
[348856584,1736817032146,-166.93,9.24e-05,2]
[348856585,1736817032156,-157.9788013,9.288e-05,2]
[348856586,1736817032166,-188.577,9.5e-05,2]
[348856587,1736817032175,-150.0,9.588e-05,2]
[348856588,1736817032185,-300.0,9.589e-05,2]
[348856589,1736817032194,-150.0,9.589e-05,2]
[348856590,1736817032203,-150.0,9.589e-05,2]
[348856591,1736817032213,-437.23,9.589e-05,2]
[348856592,1736817032223,-1621.68,9.589e-05,2]
[348856593,1736817032233,-980.19,9.589e-05,2]
[348856594,1736817032242,-437.23,9.589e-05,2]
[348856595,1736817032252,-150.0,9.589e-05,2]
[348856596,1736817032262,-834.36398743,9.589e-05,2]
[348856597,1736817032287,-145.82601257,9.589e-05,2]
[348856598,1736817032297,-437.23,9.589e-05,2]
[348856599,1736817032308,-980.19,9.589e-05,2]
[348856600,1736817032317,-437.23,9.589e-05,2]
[348856601,1736817032328,-980.19,9.589e-05,2]
[348856602,1736817032338,-1000.0,9.69e-05,2]
[348856603,1736817032347,-708.5438,9.703e-05,2]
[348856604,1736817032357,-811.8132,9.703e-05,2]
[348856605,1736817032367,-708.3343,9.703e-05,2]
[348856606,1736817032378,-1000.0,9.704e-05,2]
[348856607,1736817032388,-1000.0,9.704e-05,2]
[348856608,1736817032399,-500.0,9.803e-05,2]
[348856609,1736817032408,-500.0,9.803e-05,2]
[348856611,1736817032418,-500.0,9.803e-05,2]
[348856613,1736817032427,-500.0,9.803e-05,2]
[348856615,1736817032436,-794.55,9.803e-05,2]
[348856617,1736817032446,-500.0,9.803e-05,2]
[348856619,1736817032455,-500.0,9.803e-05,2]
[348856620,1736817032464,-500.0,9.803e-05,2]
[348856621,1736817032474,-556.26,9.803e-05,2]
[348856622,1736817032485,-500.0,9.803e-05,2]
[348856623,1736817032494,-500.0,9.803e-05,2]
[348856624,1736817032505,-515.98,9.803e-05,2]
[348856625,1736817032515,-692.55,9.803e-05,2]
[348856626,1736817032525,-500.0,9.803e-05,2]
[348856628,1736817032534,-500.0,9.803e-05,2]
[348856630,1736817032543,-500.0,9.803e-05,2]
[348856632,1736817032553,-500.0,9.803e-05,2]
[348856634,1736817032563,-500.0,9.803e-05,2]
[348856636,1736817032572,-536.02,9.803e-05,2]
[348856638,1736817032581,-500.0,9.803e-05,2]
[348856640,1736817032590,-500.0,9.803e-05,2]
[348856642,1736817032599,-500.0,9.803e-05,2]
[348856644,1736817032609,-500.0,9.803e-05,2]
[348856646,1736817032618,-500.0,9.803e-05,2]
[348856648,1736817032627,-500.0,9.803e-05,2]
[348856650,1736817032637,-233.16046889,9.803e-05,2]
[348856653,1736817032659,-266.83953111,9.803e-05,2]
[348856655,1736817032668,-494.7078041,9.803e-05,2]
[348856665,1736817032751,-5.2921959,9.803e-05,2]
[348856667,1736817032762,-500.0,9.803e-05,2]
[348856669,1736817032772,-500.0,9.803e-05,2]
[348856671,1736817032781,-336.63837541,9.803e-05,2]
[348856677,1736817032834,-163.36162459,9.803e-05,2]
[348856679,1736817032843,-500.0,9.803e-05,2]
[348856681,1736817032853,-500.0,9.803e-05,2]
[348856683,1736817032863,-500.0,9.803e-05,2]
[348856684,1736817032872,-1693.69,9.803e-05,2]
[348856685,1736817032882,-500.0,9.803e-05,2]
[348856686,1736817032891,-562.26,9.803e-05,2]
[348856687,1736817032900,-500.0,9.803e-05,2]
[348856688,1736817032909,-500.0,9.803e-05,2]
[348856689,1736817032919,-659.44,9.803e-05,2]
[348856690,1736817032929,-500.0,9.803e-05,2]
[348856691,1736817032938,-500.0,9.803e-05,2]
[348856692,1736817032948,-500.0,9.803e-05,2]
[348856693,1736817032958,-259.88300479,9.803e-05,2]
[348856694,1736817032981,-240.11699521,9.803e-05,2]
[348856695,1736817032992,-748.21749059,9.803e-05,2]
[348856696,1736817033003,-142.99250941,9.803e-05,2]
[348856697,1736817033013,-500.0,9.803e-05,2]
[348856698,1736817033023,-500.0,9.803e-05,2]
[348856699,1736817033032,-500.0,9.803e-05,2]
[348856700,1736817033043,-500.0,9.803e-05,2]
[348856701,1736817033052,-500.0,9.803e-05,2]
[348856702,1736817033062,-500.0,9.803e-05,2]
[348856703,1736817033072,-500.0,9.803e-05,2]
[348856704,1736817033086,-781.71,9.803e-05,2]
[348856705,1736817033095,-500.0,9.803e-05,2]
[348856706,1736817033105,-500.0,9.803e-05,2]
[348856707,1736817033115,-787.5,9.803e-05,2]
[348856708,1736817033125,-1345.83,9.803e-05,2]
[348856709,1736817033135,-2827.77,9.803e-05,2]
[348856710,1736817033145,-672.71,9.803e-05,2]
[348856711,1736817033154,-724.4,9.803e-05,2]
[348856712,1736817033164,-2264.2,9.803e-05,2]
[348856713,1736817033174,-2359.09,9.803e-05,2]
[348856714,1736817033184,-566.28211598,9.803e-05,2]
[348856715,1736817033194,-500.0,9.803e-05,2]
[348856716,1736817033203,-500.0,9.803e-05,2]
[348856717,1736817033213,-500.0,9.803e-05,2]
[348856718,1736817033222,-1384.53,9.803e-05,2]